fUST/lending_fUST_20240927
["ID","MTS","AMOUNT","RATE_DAILY","PERIOD"]
[339264204,1727421042169,-500.0,0.00019178,2]
[339264205,1727421042178,-1233.51,0.00019178,2]
[339264206,1727421042187,-500.0,0.00019178,2]
[339264207,1727421042196,-502.41177708,0.00019178,2]
[339264208,1727421042206,-500.0,0.00019178,2]
[339264209,1727421042215,-500.0,0.00019178,2]
[339264210,1727421042225,-343.48435352,0.00019178,2]
[339264211,1727421042234,-500.0,0.00019178,2]
[339264212,1727421042244,-503.80014309,0.00019178,2]
[339264213,1727421042253,-503.06558109,0.00019178,2]
[339264214,1727421042262,-500.0,0.00019178,2]
[339264215,1727421042272,-500.0,0.00019178,2]
[339264216,1727421042282,-500.0,0.00019178,2]
[339264217,1727421042291,-506.23067711,0.00019178,2]
[339264218,1727421042301,-500.0,0.00019178,2]
[339264220,1727421042312,-501.95821522,0.00019178,2]
[339264222,1727421042322,-500.0,0.00019178,2]
[339264224,1727421042331,-500.0,0.00019178,2]
[339264227,1727421042341,-605.97557299,0.00019178,2]
[339264230,1727421042350,-621.29322847,0.00019178,2]
[339264233,1727421042360,-500.0,0.00019178,2]
[339264236,1727421042369,-506.94895857,0.00019178,2]
[339264238,1727421042378,-151.0,0.00019178,2]
[339264241,1727421042388,-286.854387,0.00019178,2]
[339264244,1727421042397,-507.66008765,0.00019178,2]
[339264247,1727421042406,-331.608593,0.00019178,2]
[339264249,1727421042416,-331.608593,0.00019178,2]
[339264251,1727421042425,-201.71243359,0.00019178,2]
[339264253,1727421042434,-507.72145634,0.00019178,2]
[339264257,1727421042444,-501.94748668,0.00019178,2]
[339264260,1727421042453,-500.0,0.00019178,2]
[339264264,1727421042463,-502.31690782,0.00019178,2]
[339264267,1727421042472,-507.17430862,0.00019178,2]
[339264270,1727421042482,-500.0,0.00019178,2]
[339264272,1727421042492,-500.0,0.00019178,2]
[339264273,1727421042501,-500.0,0.00019178,2]
[339264274,1727421042511,-503.00704642,0.00019178,2]
[339264275,1727421042520,-259.03490477,0.00019178,2]
[339264276,1727421042529,-507.54444342,0.00019178,2]
[339264277,1727421042540,-502.91876284,0.00019178,2]
[339264278,1727421042549,-500.0,0.00019178,2]
[339264279,1727421042559,-500.0,0.00019178,2]
[339264280,1727421042568,-500.0,0.00019178,2]
[339264281,1727421042578,-500.0,0.00019178,2]
[339264282,1727421042587,-194.543515,0.00019178,2]
[339264283,1727421042596,-194.543515,0.00019178,2]
[339264284,1727421042605,-194.543515,0.00019178,2]
[339264285,1727421042615,-194.543515,0.00019178,2]
[339264287,1727421042624,-500.0,0.00019178,2]
[339264289,1727421042633,-500.0,0.00019178,2]
[339264291,1727421042643,-504.15036054,0.00019178,2]
[339264293,1727421042652,-500.0,0.00019178,2]
[339264296,1727421042663,-500.0,0.00019178,2]
[339264299,1727421042672,-506.43246892,0.00019178,2]
[339264301,1727421042681,-500.0,0.00019178,2]
[339264303,1727421042690,-151.0,0.00019178,2]
[339264305,1727421042700,-151.0,0.00019178,2]
[339264307,1727421042709,-500.0,0.00019178,2]
[339264309,1727421042718,-507.57481586,0.00019178,2]
[339264311,1727421042727,-506.78801205,0.00019178,2]
[339264313,1727421042737,-500.0,0.00019178,2]
[339264315,1727421042746,-500.0,0.00019178,2]
[339264317,1727421042755,-500.0,0.00019178,2]
[339264319,1727421042767,-1000.0,0.00019178,2]
[339264321,1727421042780,-500.0,0.00019178,2]
[339264323,1727421042789,-500.0,0.00019178,2]
[339264325,1727421042799,-506.17528528,0.00019178,2]
[339264327,1727421042808,-500.0,0.00019178,2]
[339264328,1727421042817,-500.0,0.00019178,2]
[339264329,1727421042827,-500.0,0.00019178,2]
[339264330,1727421042836,-500.0,0.00019178,2]
[339264331,1727421042845,-512.31092145,0.00019178,2]
[339264332,1727421042857,-500.0,0.00019178,2]
[339264333,1727421042868,-500.0,0.00019178,2]
[339264334,1727421042878,-505.93642412,0.00019178,2]
[339264335,1727421042888,-500.0,0.00019178,2]
[339264336,1727421042897,-151.0,0.00019178,2]
[339264337,1727421042906,-151.0,0.00019178,2]
[339264338,1727421042916,-500.0,0.00019178,2]
[339264340,1727421042925,-502.58660432,0.00019178,2]
[339264341,1727421042935,-510.45469994,0.00019178,2]
[339264342,1727421042944,-500.0,0.00019178,2]
[339264343,1727421042954,-200.0,0.00019178,2]
[339264344,1727421042963,-500.0,0.00019178,2]
[339264345,1727421042973,-500.0,0.00019178,2]
[339264346,1727421042981,-500.0,0.00019178,2]
[339264347,1727421042991,-381.34843095,0.00019178,2]
[339264348,1727421043001,-558.81008031,0.00019178,2]
[339264349,1727421043010,-506.94099607,0.00019178,2]
[339264350,1727421043019,-500.0,0.00019178,2]
[339264351,1727421043029,-500.0,0.00019178,2]
[339264352,1727421043038,-500.0,0.00019178,2]
[339264353,1727421043047,-571.18858076,0.00019178,2]
[339264354,1727421043057,-500.0,0.00019178,2]
[339264355,1727421043066,-500.0,0.00019178,2]
[339264356,1727421043075,-503.70128654,0.00019178,2]
[339264357,1727421043084,-500.0,0.00019178,2]
[339264358,1727421043093,-500.0,0.00019178,2]
[339264359,1727421043102,-500.0,0.00019178,2]
[339264360,1727421043111,-500.0,0.00019178,2]
[339264361,1727421043121,-503.58012951,0.00019178,2]
[339264362,1727421043130,-500.0,0.00019178,2]
[339264363,1727421043139,-512.23399119,0.00019178,2]
[339264364,1727421043148,-500.0,0.00019178,2]
[339264365,1727421043158,-537.87276711,0.00019178,2]
[339264366,1727421043167,-503.73732409,0.00019178,2]
[339264367,1727421043176,-500.0,0.00019178,2]
[339264368,1727421043185,-500.0,0.00019178,2]
[339264369,1727421043195,-576.96590482,0.00019178,2]
[339264370,1727421043204,-500.0,0.00019178,2]
[339264371,1727421043213,-500.0,0.00019178,2]
[339264372,1727421043222,-500.0,0.00019178,2]
[339264373,1727421043232,-500.0,0.00019178,2]
[339264374,1727421043241,-513.28879907,0.00019178,2]
[339264375,1727421043251,-506.00711978,0.00019178,2]
[339264376,1727421043260,-2332.75,0.00019178,2]
[339264377,1727421043269,-500.0,0.00019178,2]
[339264378,1727421043279,-500.0,0.00019178,2]
[339264379,1727421043290,-502.390674,0.00019178,2]
[339264380,1727421043299,-500.0,0.00019178,2]
[339264381,1727421043309,-500.0,0.00019178,2]
[339264382,1727421043318,-500.0,0.00019178,2]
[339264383,1727421043327,-507.75875498,0.00019178,2]
[339264384,1727421043336,-504.0,0.00019178,2]
[339264385,1727421043345,-500.0,0.00019178,2]
[339264386,1727421043354,-504.58815005,0.00019178,2]
[339264387,1727421043364,-500.0,0.00019178,2]
[339264388,1727421043374,-500.0,0.00019178,2]
[339264389,1727421043383,-500.0,0.00019178,2]
[339264390,1727421043392,-500.0,0.00019178,2]
[339264391,1727421043401,-500.0,0.00019178,2]
[339264392,1727421043411,-522.31,0.00019178,2]
[339264393,1727421043420,-500.0,0.00019178,2]
[339264394,1727421043429,-500.0,0.00019178,2]
[339264395,1727421043439,-500.0,0.00019178,2]
[339264396,1727421043448,-500.0,0.00019178,2]
[339264397,1727421043457,-286.42954028,0.00019178,2]
[339264398,1727421043467,-500.0,0.00019178,2]
[339264399,1727421043476,-500.0,0.00019178,2]
[339264400,1727421043485,-500.0,0.00019178,2]
[339264401,1727421043494,-500.0,0.00019178,2]
[339264402,1727421043503,-502.34490167,0.00019178,2]
[339264403,1727421043512,-500.0,0.00019178,2]
[339264404,1727421043522,-500.0,0.00019178,2]
[339264405,1727421043530,-500.0,0.00019178,2]
[339264406,1727421043540,-500.0,0.00019178,2]
[339264407,1727421043549,-672.922273,0.00019178,2]
[339264408,1727421043558,-672.922273,0.00019178,2]
[339264409,1727421043567,-500.0,0.00019178,2]
[339264410,1727421043576,-328.18284378,0.00019178,2]
[339264411,1727421043586,-500.0,0.00019178,2]
[339264412,1727421043595,-500.0,0.00019178,2]
[339264413,1727421043604,-207.38,0.00019178,2]
[339264414,1727421043613,-527.50529191,0.00019178,2]
[339264415,1727421043623,-500.0,0.00019178,2]
[339264416,1727421043632,-500.0,0.00019178,2]
[339264417,1727421043641,-510.67197481,0.00019178,2]
[339264418,1727421043651,-500.0,0.00019178,2]
[339264419,1727421043661,-500.0,0.00019178,2]
[339264420,1727421043670,-500.0,0.00019178,2]
[339264421,1727421043679,-506.9631779,0.00019178,2]
[339264422,1727421043688,-644.59,0.00019178,2]
[339264423,1727421043698,-501.39593937,0.00019178,2]
[339264424,1727421043707,-500.0,0.00019178,2]
[339264425,1727421043716,-500.0,0.00019178,2]
[339264426,1727421043725,-500.0,0.00019178,2]
[339264427,1727421043734,-500.0,0.00019178,2]
[339264428,1727421043744,-500.0,0.00019178,2]
[339264429,1727421043754,-510.19242227,0.00019178,2]
[339264430,1727421043764,-500.0,0.00019178,2]
[339264431,1727421043775,-500.0,0.00019178,2]
[339264432,1727421043785,-500.0,0.00019178,2]
[339264433,1727421043794,-500.0,0.00019178,2]
[339264434,1727421043803,-500.0,0.00019178,2]
[339264435,1727421043813,-500.0,0.00019178,2]
[339264436,1727421043822,-151.0,0.00019178,2]
[339264437,1727421043832,-151.0,0.00019178,2]
[339264438,1727421043842,-502.42042241,0.00019178,2]
[339264439,1727421043853,-513.30267835,0.00019178,2]
[339264440,1727421043863,-500.0,0.00019178,2]
[339264441,1727421043873,-500.0,0.00019178,2]
[339264442,1727421043882,-236.521968,0.00019178,2]
[339264443,1727421043892,-236.521968,0.00019178,2]
[339264444,1727421043901,-1724.24,0.00019178,2]
[339264445,1727421043911,-236.521968,0.00019178,2]
[339264446,1727421043921,-151.0,0.00019178,2]
[339264447,1727421044037,-236.521968,0.00019178,2]
[339264448,1727421044047,-151.0,0.00019178,2]
[339264449,1727421044055,-500.0,0.00019178,2]
[339264450,1727421044065,-502.35887065,0.00019178,2]
[339264451,1727421044074,-500.0,0.00019178,2]
[339264452,1727421044083,-500.0,0.00019178,2]
[339264453,1727421044092,-500.0,0.00019178,2]
[339264454,1727421044102,-500.0,0.00019178,2]
[339264455,1727421044111,-500.0,0.00019178,2]
[339264456,1727421044120,-500.0,0.00019178,2]
[339264457,1727421044130,-506.75925166,0.00019178,2]
[339264458,1727421044140,-231.004,0.00019178,2]
[339264459,1727421044149,-500.0,0.00019178,2]
[339264460,1727421044158,-500.0,0.00019178,2]
[339264461,1727421044168,-500.0,0.00019178,2]
[339264462,1727421044177,-500.0,0.00019178,2]
[339264463,1727421044186,-500.0,0.00019178,2]
[339264464,1727421044195,-500.0,0.00019178,2]
[339264465,1727421044205,-500.0,0.00019178,2]
[339264466,1727421044214,-500.0,0.00019178,2]
[339264467,1727421044223,-500.0,0.00019178,2]
[339264468,1727421044233,-500.0,0.00019178,2]
[339264469,1727421044242,-517.31186304,0.00019178,2]
[339264470,1727421044252,-522.10456009,0.00019178,2]
[339264471,1727421044261,-571.90341132,0.00019178,2]
[339264472,1727421044270,-500.0,0.00019178,2]
[339264473,1727421044282,-517.0510758,0.00019178,2]
[339264474,1727421044291,-238.255488,0.00019178,2]
[339264475,1727421044301,-238.255488,0.00019178,2]
[339264476,1727421044311,-503.26947421,0.00019178,2]
[339264477,1727421044320,-238.255488,0.00019178,2]
[339264478,1727421044329,-238.255488,0.00019178,2]
[339264479,1727421044339,-501.42969958,0.00019178,2]
[339264480,1727421044348,-532.44126041,0.00019178,2]
[339264481,1727421044358,-500.0,0.00019178,2]
[339264482,1727421044367,-500.0,0.00019178,2]
[339264483,1727421044376,-506.59010023,0.00019178,2]
[339264484,1727421044386,-264.81377327,0.00019178,2]
[339264485,1727421044396,-529.42981765,0.00019178,2]
[339264486,1727421044405,-500.0,0.00019178,2]
[339264487,1727421044416,-500.0,0.00019178,2]
[339264488,1727421044425,-511.82620235,0.00019178,2]
[339264489,1727421044434,-472.35343011,0.00019178,2]
[339264490,1727421044444,-500.0,0.00019178,2]
[339264491,1727421044453,-225.28399239,0.00019178,2]
[339264492,1727421044463,-151.0,0.00019178,2]
[339264493,1727421044473,-151.0,0.00019178,2]
[339264494,1727421044483,-500.0,0.00019178,2]
[339264495,1727421044493,-506.21437589,0.00019178,2]
[339264496,1727421044502,-531.76943769,0.00019178,2]
[339264497,1727421044512,-502.07800957,0.00019178,2]
[339264498,1727421044522,-505.99498372,0.00019178,2]
[339264499,1727421044531,-502.98838946,0.00019178,2]
[339264500,1727421044541,-508.5049903,0.00019178,2]
[339264501,1727421044551,-502.9036482,0.00019178,2]
[339264502,1727421044560,-407.058626,0.00019178,2]
[339264503,1727421044570,-507.81399178,0.00019178,2]
[339264504,1727421044580,-407.058626,0.00019178,2]
[339264505,1727421044590,-407.058626,0.00019178,2]
[339264506,1727421044599,-407.058626,0.00019178,2]
[339264507,1727421044609,-407.058626,0.00019178,2]
[339264508,1727421044619,-407.058626,0.00019178,2]
[339264509,1727421044628,-500.0,0.00019178,2]
[339264510,1727421044639,-509.43865599,0.00019178,2]
[339264511,1727421044649,-505.93331144,0.00019178,2]
[339264512,1727421044658,-291.00638307,0.00019178,2]
[339264513,1727421044668,-151.0,0.00019178,2]
[339264514,1727421044678,-151.0,0.00019178,2]
[339264515,1727421044687,-202.519324,0.00019178,2]
[339264516,1727421044697,-501.88949167,0.00019178,2]
[339264517,1727421044707,-504.60034359,0.00019178,2]
[339264518,1727421044716,-1675.314435,0.00019178,2]
[339264519,1727421044726,-1675.314435,0.00019178,2]
[339264520,1727421044735,-1675.314435,0.00019178,2]
[339264521,1727421044745,-554.607936,0.00019178,2]
[339264522,1727421044756,-554.607936,0.00019178,2]
[339264523,1727421044767,-554.607936,0.00019178,2]
[339264524,1727421044781,-500.0,0.00019178,2]
[339264525,1727421044791,-1675.314435,0.00019178,2]
[339264526,1727421044801,-1675.314435,0.00019178,2]
[339264527,1727421044811,-1675.314435,0.00019178,2]
[339264528,1727421044822,-225.242924,0.00019178,2]
[339264529,1727421044831,-225.242924,0.00019178,2]
[339264530,1727421044841,-225.242924,0.00019178,2]
[339264531,1727421044851,-554.607936,0.00019178,2]
[339264532,1727421044860,-554.607936,0.00019178,2]
[339264533,1727421044870,-554.607936,0.00019178,2]
[339264534,1727421044879,-225.242924,0.00019178,2]
[339264535,1727421044889,-225.242924,0.00019178,2]
[339264536,1727421044898,-225.242924,0.00019178,2]
[339264537,1727421044908,-500.0,0.00019178,2]
[339264538,1727421044918,-571.08775868,0.00019178,2]
[339264539,1727421044928,-500.0,0.00019178,2]
[339264540,1727421044938,-500.0,0.00019178,2]
[339264541,1727421044948,-212.306581,0.00019178,2]
[339264542,1727421044957,-212.306581,0.00019178,2]
[339264543,1727421044966,-212.306581,0.00019178,2]
[339264544,1727421044976,-212.306581,0.00019178,2]
[339264545,1727421044986,-500.0,0.00019178,2]
[339264546,1727421044995,-212.306581,0.00019178,2]
[339264547,1727421045007,-212.306581,0.00019178,2]
[339264548,1727421045016,-505.7320297,0.00019178,2]
[339264549,1727421045026,-500.0,0.00019178,2]
[339264550,1727421045035,-444.85133149,0.00019178,2]
[339264551,1727421045045,-500.0,0.00019178,2]
[339264552,1727421045056,-500.0,0.00019178,2]
[339264553,1727421045066,-406.8697545,0.00019178,2]
[339264554,1727421045076,-295.36111,0.00019178,2]
[339264555,1727421045085,-500.0,0.00019178,2]
[339264556,1727421045095,-500.0,0.00019178,2]
[339264557,1727421045105,-151.0,0.00019178,2]
[339264558,1727421045114,-151.0,0.00019178,2]
[339264559,1727421045124,-151.0,0.00019178,2]
[339264560,1727421045134,-500.0,0.00019178,2]
[339264561,1727421045144,-151.0,0.00019178,2]
[339264562,1727421045153,-277.939259,0.00019178,2]
[339264563,1727421045164,-500.0,0.00019178,2]
[339264564,1727421045178,-500.0,0.00019178,2]
[339264565,1727421045188,-531.08333799,0.00019178,2]
[339264566,1727421045196,-508.86443732,0.00019178,2]
[339264567,1727421045206,-500.0,0.00019178,2]
[339264568,1727421045216,-571.02813105,0.00019178,2]
[339264569,1727421045225,-500.0,0.00019178,2]
[339264570,1727421045235,-500.0,0.00019178,2]
[339264571,1727421045245,-500.0,0.00019178,2]
[339264572,1727421045255,-500.0,0.00019178,2]
[339264573,1727421045264,-500.0,0.00019178,2]
[339264574,1727421045274,-500.0,0.00019178,2]
[339264575,1727421045283,-500.0,0.00019178,2]
[339264576,1727421045293,-500.0,0.00019178,2]
[339264577,1727421045302,-534.182971,0.00019178,2]
[339264578,1727421045313,-534.182971,0.00019178,2]
[339264579,1727421045324,-503.00449786,0.00019178,2]
[339264580,1727421045334,-534.182971,0.00019178,2]
[339264581,1727421045344,-534.182971,0.00019178,2]
[339264582,1727421045354,-554.31378775,0.00019178,2]
[339264583,1727421045364,-275.694663,0.00019178,2]
[339264584,1727421045373,-275.694663,0.00019178,2]
[339264585,1727421045383,-275.694663,0.00019178,2]
[339264586,1727421045392,-500.0,0.00019178,2]
[339264587,1727421045401,-275.694663,0.00019178,2]
[339264588,1727421045413,-275.694663,0.00019178,2]
[339264589,1727421045422,-275.694663,0.00019178,2]
[339264590,1727421045431,-504.73132709,0.00019178,2]
[339264591,1727421045440,-500.0,0.00019178,2]
[339264593,1727421045449,-500.0,0.00019178,2]
[339264595,1727421045458,-502.4963223,0.00019178,2]
[339264596,1727421045468,-510.19479574,0.00019178,2]
[339264597,1727421045478,-506.37681654,0.00019178,2]
[339264598,1727421045487,-507.33275191,0.00019178,2]
[339264599,1727421045497,-500.0,0.00019178,2]
[339264600,1727421045506,-500.0,0.00019178,2]
[339264601,1727421045515,-500.0,0.00019178,2]
[339264602,1727421045525,-500.0,0.00019178,2]
[339264603,1727421045535,-500.0,0.00019178,2]
[339264604,1727421045544,-523.29652367,0.00019178,2]
[339264605,1727421045553,-522.83889569,0.00019178,2]
[339264606,1727421045563,-311.584747,0.00019178,2]
[339264607,1727421045572,-311.584747,0.00019178,2]
[339264608,1727421045582,-500.0,0.00019178,2]
[339264610,1727421045591,-311.584747,0.00019178,2]
[339264611,1727421045600,-500.0,0.00019178,2]
[339264613,1727421045610,-300.25769185,0.00019178,2]
[339264614,1727421045620,-311.584747,0.00019178,2]
[339264615,1727421045629,-311.584747,0.00019178,2]
[339264617,1727421045639,-311.584747,0.00019178,2]
[339264618,1727421045648,-500.0,0.00019178,2]
[339264620,1727421045657,-151.0,0.00019178,2]
[339264621,1727421045667,-262.28491804,0.00019178,2]
[339264622,1727421045676,-151.0,0.00019178,2]
[339264623,1727421045686,-288.544269,0.00019178,2]
[339264624,1727421045695,-500.0,0.00019178,2]
[339264625,1727421045704,-500.0,0.00019178,2]
[339264626,1727421045713,-513.28998254,0.00019178,2]
[339264627,1727421045723,-169.9404142,0.00019178,2]
[339264628,1727421045732,-500.0,0.00019178,2]
[339264629,1727421045742,-500.0,0.00019178,2]
[339264630,1727421045751,-500.0,0.00019178,2]
[339264631,1727421045760,-517.43819269,0.00019178,2]
[339264632,1727421045772,-504.69552132,0.00019178,2]
[339264634,1727421045782,-464.26494316,0.00019178,2]
[339264636,1727421045791,-500.0,0.00019178,2]
[339264637,1727421045801,-500.0,0.00019178,2]
[339264638,1727421045811,-500.0,0.00019178,2]
[339264639,1727421045820,-509.33291434,0.00019178,2]
[339264640,1727421045829,-500.0,0.00019178,2]
[339264641,1727421045839,-500.0,0.00019178,2]
[339264642,1727421045851,-500.0,0.00019178,2]
[339264643,1727421045860,-505.69260725,0.00019178,2]
[339264644,1727421045870,-506.60099789,0.00019178,2]
[339264645,1727421045879,-151.0,0.00019178,2]
[339264646,1727421045889,-152.187776,0.00019178,2]
[339264647,1727421045898,-500.0,0.00019178,2]
[339264648,1727421045908,-500.0,0.00019178,2]
[339264649,1727421045945,-515.77743723,0.00019178,2]
[339264650,1727421045954,-500.0,0.00019178,2]
[339264651,1727421045963,-500.0,0.00019178,2]
[339264652,1727421045973,-500.0,0.00019178,2]
[339264653,1727421045982,-500.0,0.00019178,2]
[339264654,1727421045991,-500.0,0.00019178,2]
[339264655,1727421046000,-500.0,0.00019178,2]
[339264656,1727421046009,-500.0,0.00019178,2]
[339264657,1727421046018,-500.0,0.00019178,2]
[339264658,1727421046027,-503.82682857,0.00019178,2]
[339264659,1727421046037,-435.00958,0.00019178,2]
[339264660,1727421046046,-500.0,0.00019178,2]
[339264661,1727421046055,-435.00958,0.00019178,2]
[339264662,1727421046064,-435.00958,0.00019178,2]
[339264663,1727421046073,-500.0,0.00019178,2]
[339264664,1727421046082,-500.0,0.00019178,2]
[339264665,1727421046091,-435.00958,0.00019178,2]
[339264666,1727421046100,-435.00958,0.00019178,2]
[339264667,1727421046109,-504.39762484,0.00019178,2]
[339264668,1727421046119,-500.0,0.00019178,2]
[339264669,1727421046128,-435.00958,0.00019178,2]
[339264670,1727421046137,-500.0,0.00019178,2]
[339264671,1727421046146,-500.0,0.00019178,2]
[339264672,1727421046155,-500.0,0.00019178,2]
[339264673,1727421046165,-500.0,0.00019178,2]
[339264674,1727421046174,-500.0,0.00019178,2]
[339264675,1727421046183,-500.0,0.00019178,2]
[339264676,1727421046192,-500.0,0.00019178,2]
[339264677,1727421046201,-500.0,0.00019178,2]
[339264678,1727421046210,-500.0,0.00019178,2]
[339264679,1727421046219,-500.0,0.00019178,2]
[339264680,1727421046229,-641.03463898,0.00019178,2]
[339264681,1727421046237,-508.20465973,0.00019178,2]
[339264682,1727421046247,-500.0,0.00019178,2]
[339264683,1727421046256,-500.0,0.00019178,2]
[339264684,1727421046265,-2096.99,0.00019178,2]
[339264685,1727421046274,-500.0,0.00019178,2]
[339264686,1727421046283,-500.0,0.00019178,2]
[339264687,1727421046293,-500.0,0.00019178,2]
[339264688,1727421046302,-500.0,0.00019178,2]
[339264689,1727421046312,-502.35137241,0.00019178,2]
[339264690,1727421046321,-525.11117407,0.00019178,2]
[339264691,1727421046330,-500.0,0.00019178,2]
[339264692,1727421046339,-500.0,0.00019178,2]
[339264693,1727421046349,-506.86488071,0.00019178,2]
[339264694,1727421046358,-500.0,0.00019178,2]
[339264695,1727421046367,-500.0,0.00019178,2]
[339264696,1727421046376,-500.0,0.00019178,2]
[339264697,1727421046385,-640.18445733,0.00019178,2]
[339264698,1727421046394,-484.81701463,0.00019178,2]
[339264699,1727421046403,-500.0,0.00019178,2]
[339264700,1727421046412,-330.739292,0.00019178,2]
[339264701,1727421046421,-500.0,0.00019178,2]
[339264702,1727421046431,-330.739292,0.00019178,2]
[339264703,1727421046440,-330.739292,0.00019178,2]
[339264704,1727421046450,-509.34441419,0.00019178,2]
[339264705,1727421046459,-500.0,0.00019178,2]
[339264706,1727421046468,-598.64,0.00019178,2]
[339264707,1727421046478,-500.0,0.00019178,2]
[339264708,1727421046487,-500.0,0.00019178,2]
[339264709,1727421046496,-500.0,0.00019178,2]
[339264710,1727421046506,-330.739292,0.00019178,2]
[339264711,1727421046514,-330.739292,0.00019178,2]
[339264712,1727421046524,-500.0,0.00019178,2]
[339264713,1727421046533,-330.739292,0.00019178,2]
[339264714,1727421046543,-505.39575549,0.00019178,2]
[339264715,1727421046553,-352.01920471,0.00019178,2]
[339264716,1727421046563,-500.0,0.00019178,2]
[339264717,1727421046572,-5000.0,0.00019178,2]
[339264718,1727421046581,-500.0,0.00019178,2]
[339264719,1727421046591,-500.0,0.00019178,2]
[339264720,1727421046600,-500.0,0.00019178,2]
[339264721,1727421046609,-508.70404606,0.00019178,2]
[339264722,1727421046618,-500.0,0.00019178,2]
[339264723,1727421046628,-600.38907819,0.00019178,2]
[339264724,1727421046637,-500.0,0.00019178,2]
[339264725,1727421046645,-500.0,0.00019178,2]
[339264726,1727421046655,-500.0,0.00019178,2]
[339264727,1727421046665,-500.0,0.00019178,2]
[339264728,1727421046674,-500.0,0.00019178,2]
[339264729,1727421046684,-500.0,0.00019178,2]
[339264730,1727421046693,-500.0,0.00019178,2]
[339264731,1727421046701,-167.739511,0.00019178,2]
[339264732,1727421046711,-167.739511,0.00019178,2]
[339264733,1727421046720,-167.739511,0.00019178,2]
[339264734,1727421046729,-537.57514377,0.00019178,2]
[339264735,1727421046738,-225.66907128,0.00019178,2]
[339264736,1727421046747,-167.739511,0.00019178,2]
[339264737,1727421046757,-167.739511,0.00019178,2]
[339264738,1727421046767,-167.739511,0.00019178,2]
[339264739,1727421046781,-505.33591757,0.00019178,2]
[339264740,1727421046790,-256.72957192,0.00019178,2]
[339264741,1727421046799,-500.0,0.00019178,2]
[339264742,1727421046808,-500.0,0.00019178,2]
[339264743,1727421046818,-500.0,0.00019178,2]
[339264744,1727421046829,-500.0,0.00019178,2]
[339264745,1727421046839,-151.0,0.00019178,2]
[339264746,1727421046850,-532.7567702,0.00019178,2]
[339264747,1727421046860,-151.0,0.00019178,2]
[339264748,1727421046869,-19919.37,0.00019178,2]
[339264749,1727421046879,-151.0,0.00019178,2]
[339264750,1727421046888,-500.0,0.00019178,2]
[339264751,1727421046897,-500.0,0.00019178,2]
[339264752,1727421046908,-543.31043458,0.00019178,2]
[339264753,1727421046918,-500.0,0.00019178,2]
[339264754,1727421046928,-500.0,0.00019178,2]
[339264755,1727421046937,-289.05216459,0.00019178,2]
[339264756,1727421046947,-500.0,0.00019178,2]
[339264757,1727421046956,-3649.69,0.00019178,2]
[339264758,1727421046965,-505.80502108,0.00019178,2]
[339264759,1727421046975,-500.0,0.00019178,2]
[339264760,1727421046984,-552.67060331,0.00019178,2]
[339264761,1727421046993,-500.0,0.00019178,2]
[339264762,1727421047003,-496.31801106,0.00019178,2]
[339264763,1727421047013,-746.72,0.00019178,2]
[339264764,1727421047022,-640.84628451,0.00019178,2]
[339264765,1727421047033,-193.19890639,0.00019178,2]
[339264766,1727421047042,-513.06137565,0.00019178,2]
[339264767,1727421047052,-509.662391,0.00019178,2]
[339264768,1727421047061,-509.662391,0.00019178,2]